fUST/lending_fUST_20240221
["ID","MTS","AMOUNT","RATE_DAILY","PERIOD"]
[314624543,1708463449149,-701.96,0.00021917,2]
[314624544,1708463449158,-500.0,0.00021917,2]
[314624545,1708463449167,-500.0,0.00021917,2]
[314624546,1708463449177,-709.6,0.00021917,2]
[314624547,1708463449186,-500.0,0.00021917,2]
[314624548,1708463449196,-500.0,0.00021917,2]
[314624549,1708463449206,-845.23,0.00021917,2]
[314624550,1708463449215,-500.0,0.00021917,2]
[314624551,1708463449225,-500.0,0.00021917,2]
[314624552,1708463449234,-403.29293715,0.00021917,2]
[314624553,1708463449244,-270.72050512,0.00021917,2]
[314624554,1708463449254,-500.0,0.00021917,2]
[314624555,1708463449263,-500.0,0.00021917,2]
[314624556,1708463449272,-500.0,0.00021917,2]
[314624557,1708463449283,-500.0,0.00021917,2]
[314624558,1708463449294,-3000.65,0.00021917,2]
[314624559,1708463449304,-500.0,0.00021917,2]
[314624560,1708463449314,-500.0,0.00021917,2]
[314624561,1708463449324,-500.0,0.00021917,2]
[314624562,1708463449333,-911.01,0.00021917,2]
[314624563,1708463449343,-500.0,0.00021917,2]
[314624564,1708463449358,-500.0,0.00021917,2]
[314624565,1708463449368,-500.0,0.00021917,2]
[314624566,1708463449378,-488.74939134,0.00021917,2]
[314624752,1708464643021,-163.38875591,0.00020375,2]
[314624754,1708464643031,-232.53124409,0.00020475,2]
[314624973,1708464863718,300.0,0.000221,10]
[314625064,1708465832269,-533.29880034,0.00020288,2]
[314625065,1708465832281,-210.05914632,0.00020288,2]
[314625066,1708465832291,-648.81930365,0.00020289,2]
[314625067,1708465832304,-834.91645385,0.00020289,2]
[314625068,1708465832315,-280.0,0.00020347,2]
[314625069,1708465832324,-243.925332,0.00020348,2]
[314625070,1708465832334,-4581.0545423,0.00020348,2]
[314625071,1708465832344,-1599.40892055,0.00020475,2]
[314625072,1708465832353,-1612.60556484,0.00020475,2]
[314625073,1708465832362,-2417.23658058,0.00020475,2]
[314625074,1708465832372,-5000.0,0.00020475,2]
[314625075,1708465832382,-732.79393522,0.00020475,2]
[314625076,1708465832391,-5000.0,0.00020478,2]
[314625077,1708465832401,-8458.93096293,0.000205,2]
[314625078,1708465832411,-620.0,0.00021371,2]
[314625079,1708465832420,-762.0,0.00021782,2]
[314625080,1708465832430,-55251.51359034,0.000218,2]
[314625081,1708465832439,-311.092319,0.000218,2]
[314625082,1708465832448,-1250.8371045,0.00021817,2]
[314625083,1708465832458,-395.92,0.00021862,3]
[314625084,1708465832467,-1158.42,0.00021862,3]
[314625085,1708465832477,-965.35,0.00021862,3]
[314625086,1708465832486,-804.46,0.00021862,3]
[314625087,1708465832496,-169.81027582,0.00021871,2]
[314625088,1708465832506,-1511.08050578,0.00021872,2]
[314625089,1708465832518,-5434.6003778,0.00021872,2]
[314625126,1708465837999,-677.71535728,0.00021872,2]
[314625128,1708465838011,-5904.45756012,0.00021872,2]
[314625129,1708465838024,-4885.36552173,0.00021872,2]
[314625130,1708465838082,-3181.87849631,0.00021872,2]
[314625514,1708465846125,-670.38,0.00021862,3]
[314625516,1708465846134,-16272.76,0.00021872,2]
[314625902,1708467032349,-437.6112463,0.00019523,2]
[314625904,1708467032358,-6178.0357907,0.00019523,2]
[314625906,1708467032368,-159.67963018,0.0001984,2]
[314625908,1708467032377,-168.590857,0.00019845,2]
[314625910,1708467032387,-6.83098677,0.00020297,2]
[314625991,1708467038221,-9784.55234657,0.00020297,2]
[314625993,1708467038230,-2012.75038605,0.00020485,2]
[314625995,1708467038239,-5000.0,0.00020485,2]
[314625997,1708467038248,-3697.87640866,0.00020485,2]
[314626313,1708467041453,-693.52541963,0.00020485,2]
[314626422,1708467043168,-608.59817171,0.00020485,2]
[314626423,1708467043179,-269.41,0.00020989,3]
[314626424,1708467043189,-9535.02583774,0.00020999,2]
[314626599,1708467046226,-513.75,0.00020989,3]
[314626602,1708467046237,-26.47007021,0.00020999,2]
[314627466,1708467247766,500.0,0.000211,7]
[314627467,1708467248986,500.0,0.000211,7]
[314627468,1708467249885,500.0,0.000211,7]
[314627469,1708467250699,500.0,0.000211,7]
[314627470,1708467251562,500.0,0.000211,7]
[314627471,1708467252367,500.0,0.000211,7]
[314627472,1708467253212,500.0,0.000211,7]
[314627473,1708467254022,500.0,0.000211,7]
[314627474,1708467254888,578.59,0.000211,7]
[314627475,1708467272253,455.35754138,0.00019,2]
[314627495,1708467873668,303.57169426,0.00019,2]
[314627678,1708468239352,-208.465495,0.00019868,2]
[314627680,1708468239361,-950.49104093,0.00020039,2]
[314627682,1708468239373,-1243.51677413,0.00020039,2]
[314627687,1708468239408,-1339.12430165,0.00020039,2]
[314627689,1708468239419,-365.64022179,0.00020039,2]
[314627691,1708468239428,-155.20176229,0.00020059,2]
[314627693,1708468239438,-31157.11768291,0.00020485,2]
[314627695,1708468239447,-11023.56114969,0.00020485,2]
[314627697,1708468239459,-11334.80020306,0.00020485,2]
[314627699,1708468239469,-1215.82924811,0.00020485,2]
[314627703,1708468239478,-28026.33549623,0.00020999,2]
[314628184,1708468244510,-206.47,0.00020989,3]
[314628186,1708468244520,-661.72,0.00020999,2]
[314628188,1708468244532,-1492.46356743,0.00020999,2]
[314628191,1708468244544,-21108.25311808,0.00020999,2]
[314628242,1708468244982,-134188.36177568,0.00020999,2]
[314628244,1708468244992,-341.912717,0.00020999,2]
[314628247,1708468245001,-341.912717,0.00020999,2]
[314628250,1708468245011,-341.912717,0.00020999,2]
[314628253,1708468245020,-341.912717,0.00020999,2]
[314628256,1708468245028,-341.912717,0.00020999,2]
[314628258,1708468245038,-341.912717,0.00020999,2]
[314628260,1708468245047,-341.912717,0.00020999,2]
[314628262,1708468245056,-341.912717,0.00020999,2]
[314628265,1708468245065,-151.0,0.00020999,2]
[314628267,1708468245074,-151.545041,0.00020999,2]
[314628269,1708468245083,-151.0,0.00020999,2]
[314628271,1708468245092,-151.0,0.00020999,2]
[314628274,1708468245101,-151.0,0.00020999,2]
[314628275,1708468245111,-276.460408,0.00020999,2]
[314628277,1708468245121,-500.0,0.00020999,2]
[314628278,1708468245130,-500.0,0.00020999,2]
[314628280,1708468245140,-646.26830284,0.00020999,2]
[314628281,1708468245149,-500.0,0.00020999,2]
[314628283,1708468245158,-500.0,0.00020999,2]
[314628284,1708468245168,-500.0,0.00020999,2]
[314628286,1708468245177,-500.0,0.00020999,2]
[314628287,1708468245186,-500.0,0.00020999,2]
[314628289,1708468245195,-500.0,0.00020999,2]
[314628290,1708468245204,-500.0,0.00020999,2]
[314628292,1708468245214,-500.0,0.00020999,2]
[314628293,1708468245222,-379.41298934,0.00020999,2]
[314628295,1708468245231,-500.0,0.00020999,2]
[314628296,1708468245240,-500.0,0.00020999,2]
[314628298,1708468245249,-500.0,0.00020999,2]
[314628299,1708468245258,-500.0,0.00020999,2]
[314628301,1708468245267,-500.0,0.00020999,2]
[314628302,1708468245276,-500.0,0.00020999,2]
[314628304,1708468245285,-500.0,0.00020999,2]
[314628305,1708468245294,-500.0,0.00020999,2]
[314628307,1708468245303,-500.0,0.00020999,2]
[314628309,1708468245312,-500.0,0.00020999,2]
[314628310,1708468245321,-500.0,0.00020999,2]
[314628312,1708468245330,-500.0,0.00020999,2]
[314628313,1708468245339,-500.0,0.00020999,2]
[314628315,1708468245349,-500.0,0.00020999,2]
[314628317,1708468245359,-500.0,0.00020999,2]
[314628318,1708468245368,-493.33969978,0.00020999,2]
[314628320,1708468245377,-500.0,0.00020999,2]
[314628322,1708468245386,-500.0,0.00020999,2]
[314628323,1708468245395,-500.0,0.00020999,2]
[314628325,1708468245404,-500.0,0.00020999,2]
[314628327,1708468245413,-500.0,0.00020999,2]
[314628328,1708468245422,-500.0,0.00020999,2]
[314628330,1708468245431,-500.0,0.00020999,2]
[314628331,1708468245440,-500.0,0.00020999,2]
[314628333,1708468245449,-500.0,0.00020999,2]
[314628334,1708468245458,-500.0,0.00020999,2]
[314628336,1708468245467,-500.0,0.00020999,2]
[314628338,1708468245476,-500.0,0.00020999,2]
[314628339,1708468245485,-500.0,0.00020999,2]
[314628341,1708468245494,-500.0,0.00020999,2]
[314628343,1708468245503,-500.0,0.00020999,2]
[314628344,1708468245512,-500.0,0.00020999,2]
[314628346,1708468245521,-500.0,0.00020999,2]
[314628347,1708468245531,-500.0,0.00020999,2]
[314628360,1708468245703,-500.0,0.00020999,2]
[314628362,1708468245717,-500.0,0.00020999,2]
[314628364,1708468245726,-500.0,0.00020999,2]
[314628365,1708468245736,-500.0,0.00020999,2]
[314628367,1708468245745,-500.0,0.00020999,2]
[314628368,1708468245754,-500.0,0.00020999,2]
[314628370,1708468245765,-500.0,0.00020999,2]
[314628372,1708468245773,-500.0,0.00020999,2]
[314628373,1708468245783,-500.0,0.00020999,2]
[314628375,1708468245792,-500.0,0.00020999,2]
[314628377,1708468245802,-500.0,0.00020999,2]
[314628378,1708468245811,-500.0,0.00020999,2]
[314628380,1708468245820,-500.0,0.00020999,2]
[314628382,1708468245829,-500.0,0.00020999,2]
[314628383,1708468245838,-500.0,0.00020999,2]
[314628385,1708468245850,-500.0,0.00020999,2]
[314628387,1708468245859,-500.0,0.00020999,2]
[314628388,1708468245869,-500.0,0.00020999,2]
[314628390,1708468245877,-500.0,0.00020999,2]
[314628392,1708468245887,-500.0,0.00020999,2]
[314628393,1708468245896,-500.0,0.00020999,2]
[314628395,1708468245905,-500.0,0.00020999,2]
[314628396,1708468245914,-500.0,0.00020999,2]
[314628398,1708468245924,-500.0,0.00020999,2]
[314628400,1708468245933,-500.0,0.00020999,2]
[314628401,1708468245943,-500.0,0.00020999,2]
[314628403,1708468245953,-500.0,0.00020999,2]
[314628406,1708468245963,-500.0,0.00020999,2]
[314628407,1708468245972,-500.0,0.00020999,2]
[314628409,1708468245982,-500.0,0.00020999,2]
[314628410,1708468245991,-500.0,0.00020999,2]
[314628412,1708468246000,-500.0,0.00020999,2]
[314628414,1708468246009,-500.0,0.00020999,2]
[314628415,1708468246018,-500.0,0.00020999,2]
[314628418,1708468246028,-500.0,0.00020999,2]
[314628420,1708468246037,-500.0,0.00020999,2]
[314628423,1708468246046,-500.0,0.00020999,2]
[314628426,1708468246056,-500.0,0.00020999,2]
[314628428,1708468246065,-500.0,0.00020999,2]
[314628431,1708468246074,-500.0,0.00020999,2]
[314628433,1708468246082,-200.0,0.00020999,2]
[314628436,1708468246091,-500.0,0.00020999,2]
[314628439,1708468246101,-500.0,0.00020999,2]
[314628442,1708468246110,-500.0,0.00020999,2]
[314628446,1708468246120,-500.0,0.00020999,2]
[314628448,1708468246130,-11664.06285567,0.00021,2]
[314628451,1708468246139,-3034.60697526,0.00021,2]
[314628490,1708468246698,-7664.12173849,0.00021,2]
[314628512,1708468464659,300.0,0.000221,10]
[314628513,1708468474955,202.3811295,0.000189,2]
[314628660,1708469438448,-4755.16111151,0.00019248,2]
[314628735,1708469441732,-3430.36083669,0.00019248,2]
[314628736,1708469441741,-304.925186,0.00019248,2]
[314628737,1708469441750,-155.20176229,0.00019672,2]
[314628738,1708469441759,-989.88965205,0.00019673,2]
[314628739,1708469441768,-3916.07605408,0.000199,2]
[314628740,1708469441777,-7565.21874579,0.0002,2]
[314628929,1708469445130,-2519.77224721,0.0002,2]
[314628930,1708469445139,-171.875,0.00020384,2]
[314628931,1708469445149,-708.72,0.00020473,3]
[314628932,1708469445158,-1937.56200479,0.00020483,2]
[314629000,1708469446485,-616.38,0.00020483,2]
[314629010,1708469446624,-23125.94049526,0.00020483,2]
[314629065,1708469650688,6126.73297137,0.000125,2]
[314629067,1708469660452,158.68283574,0.000176,2]
[314629070,1708469665624,270.23075585,0.0001,2]
[314629074,1708469677575,474.81592069,0.000189,2]
[314629077,1708470081490,2000.0,0.000238,30]
[314629078,1708470081964,2000.0,0.0002381,30]
[314629079,1708470082464,2000.0,0.0002382,30]
[314629080,1708470082991,2000.0,0.0002383,30]
[314629081,1708470083421,2000.0,0.0002384,30]
[314629082,1708470083931,2000.0,0.0002385,30]
[314629083,1708470084461,2000.0,0.0002386,30]
[314629084,1708470084904,2000.0,0.0002387,30]
[314629085,1708470085758,2000.0,0.0002388,30]
[314629086,1708470086259,2000.0,0.0002389,30]
[314629087,1708470086769,2000.0,0.000239,30]
[314629088,1708470087175,2000.0,0.0002391,30]
[314629089,1708470087762,2000.0,0.0002392,30]
[314629090,1708470088203,2000.0,0.0002393,30]
[314629091,1708470088726,2000.0,0.0002394,30]
[314629092,1708470089175,2000.0,0.0002395,30]
[314629093,1708470089716,2264.220184,0.0002396,30]
[314629185,1708470634926,-168.983147,0.00019238,2]
[314629187,1708470634936,-620.0,0.00020252,2]
[314629189,1708470634945,-174.29147405,0.00020382,2]
[314629191,1708470634954,-395.92,0.00020469,3]
[314629193,1708470634963,-1431.11,0.00020469,3]
[314629195,1708470634973,-1192.59,0.00020469,3]
[314629197,1708470634982,-993.82,0.00020469,3]
[314629199,1708470634992,-1733.22,0.00020478,2]
[314629201,1708470635001,-31080.91365271,0.00020479,2]
[314629262,1708470639784,-5216.3,0.00020479,2]
[314629277,1708470639906,-9516.26065609,0.00020479,2]
[314629286,1708470639966,-26986.6177706,0.00020479,2]
[314629377,1708470640982,-4322.93350819,0.00020479,2]
[314629380,1708470640994,-3003.86056869,0.00020479,2]
[314629429,1708470642732,-500.0,0.00020478,2]
[314629430,1708470642742,-22334.40926228,0.00020479,2]
[314629462,1708470973677,2000.0,0.000238,30]
[314629463,1708470974352,2000.0,0.0002381,30]
[314629464,1708470974648,2000.0,0.0002382,30]
[314629465,1708470975210,2000.0,0.0002383,30]
[314629466,1708470975545,2000.0,0.0002384,30]
[314629467,1708470975906,2000.0,0.0002385,30]
[314629468,1708470976235,2000.0,0.0002386,30]
[314629469,1708470976593,2000.0,0.0002387,30]
[314629470,1708470976936,2000.0,0.0002388,30]
[314629471,1708470977450,2000.0,0.0002389,30]
[314629472,1708470977893,2000.0,0.000239,30]
[314629473,1708470978246,2000.0,0.0002391,30]
[314629474,1708470978699,3413.14566135,0.0002392,30]
[314629543,1708471831955,-1081.2848285,0.00019375,2]
[314629545,1708471831964,-55251.51359034,0.000203,2]
[314629547,1708471831974,-828.19,0.00020361,3]
[314629549,1708471831983,-690.15,0.00020361,3]
[314629551,1708471831992,-575.13,0.00020361,3]
[314629553,1708471832001,-245.94705367,0.0002037,2]
[314629555,1708471832010,-29389.19646909,0.00020371,4]
[314629731,1708471844522,-479.27,0.00020361,3]
[314629732,1708471844532,-1800.29990973,0.00020371,4]
[314629733,1708471844544,-6060.60292798,0.00020371,4]
[314629741,1708471845579,-3014.50684067,0.00020371,4]
[314629770,1708472090220,316.54394712,0.000189,2]
[314629776,1708472691849,211.02929808,0.000189,2]
[314629777,1708472833586,2758.1337483,0.00018917,2]
[314629832,1708472974122,187.83,0.0003,120]
[314629845,1708473038073,-155.21730423,0.00019169,2]
[314629846,1708473038082,-155.21730423,0.0001917,2]
[314629847,1708473038091,-169.769954,0.00019178,2]
[314629848,1708473038101,-228.8289968,0.00019178,2]
[314629849,1708473038110,-192.906747,0.00019282,2]
[314629850,1708473038119,-820.971,0.00019964,2]
[314629851,1708473038128,-820.972,0.00019964,2]
[314629852,1708473038137,-529.85359875,0.00019964,2]
[314630045,1708473041249,-291.11840125,0.00019964,2]
[314630046,1708473041259,-820.971,0.00019964,2]
[314630047,1708473041268,-820.972,0.00019964,2]
[314630048,1708473041278,-561.08995506,0.00020202,2]
[314630072,1708473043121,-58.91084026,0.00020202,2]
[314630073,1708473043130,-165.99900635,0.00020268,2]
[314630074,1708473043139,-5295.40523465,0.0002027,2]
[314630075,1708473043151,-1115.42130348,0.0002027,2]
[314630076,1708473043165,-13195.62763794,0.0002027,2]
[314630077,1708473043174,-364.59,0.00020356,3]
[314630078,1708473043183,-303.82,0.00020356,3]
[314630079,1708473043192,-208.84,0.00020357,3]
[314630080,1708473043202,-581.6,0.00020358,3]
[314630081,1708473043210,-500.0,0.00020366,2]
[314630082,1708473043219,-3568.37236258,0.00020366,2]
[314630129,1708473046242,-253.19,0.00020356,3]
[314630131,1708473046252,-598.30034209,0.00020366,2]
[314630174,1708473258004,382.89121651,0.000176,2]
[314630180,1708473292938,621.35320312,0.000189,2]
[314630182,1708473690767,200.0,0.00028372,120]
[314630183,1708473712785,13528.6646827,0.00019008,2]
[314630186,1708473869220,7998.64459128,0.00018,2]
[314630187,1708473894258,710.53096797,0.000189,2]
[314630188,1708473920618,5000.0,0.0002222,6]
[314630189,1708473929053,5000.0,0.0002222,6]
[314630190,1708473937240,5000.0,0.0002222,6]
[314630191,1708473945411,5000.0,0.0002222,6]
[314630195,1708473951232,7998.64459128,0.000189,2]
[314630196,1708473954096,5000.0,0.0002222,6]
[314630197,1708473958528,18758.0571646,0.00019063,2]
[314630199,1708473972307,7998.64459128,0.00019063,2]
[314630200,1708473988308,7998.64459128,0.00019063,2]
[314630201,1708474008309,7998.64459128,0.00019063,2]
[314630202,1708474030322,7998.64459128,0.00019063,2]
[314630211,1708474048321,7998.64459128,0.00019063,2]
[314630214,1708474074478,7998.64459128,0.00019063,2]
[314630215,1708474094479,7998.64459128,0.00019063,2]
[314630216,1708474112476,7998.64459128,0.00019063,2]
[314630217,1708474134566,5324.25726717,0.00019063,2]
[314630291,1708474232300,-155.21730423,0.00019156,2]
[314630293,1708474232309,-255.191152,0.00019157,2]
[314630295,1708474232318,-168.433115,0.00019178,2]
[314630297,1708474232327,-485.56206308,0.00019205,2]
[314630298,1708474232339,-472.95014852,0.00019205,2]
[314630300,1708474232349,-163.38875591,0.00019265,2]
[314630302,1708474232358,-634.40265833,0.00020256,2]
[314630303,1708474232368,-186.35083221,0.00020257,2]
[314630304,1708474232377,-373.16659592,0.00020263,2]
[314630306,1708474232386,-373.1665959,0.00020264,2]
[314630308,1708474232395,-373.1665959,0.00020265,2]
[314630309,1708474232405,-373.1665959,0.00020266,2]
[314630310,1708474232414,-373.1665959,0.00020267,2]
[314630312,1708474232425,-3216.6945437,0.00020267,2]
[314630313,1708474232434,-111.13544815,0.00020352,2]
[314630316,1708474232447,-188.86455185,0.00020352,2]
[314630317,1708474232456,-346.89,0.00020352,3]
[314630319,1708474232465,-173.45,0.00020352,3]
[314630320,1708474232475,-520.37,0.00020352,3]
[314630321,1708474232484,-210.99,0.00020352,3]
[314630322,1708474232493,-175.82,0.00020352,3]
[314630323,1708474232504,-1661.0,0.0002036,2]
[314630324,1708474232513,-5315.8224578,0.00020361,2]
[314630326,1708474232526,-36811.4875422,0.00020361,2]
[314630327,1708474232536,-500.0,0.00020361,2]
[314630328,1708474232547,-500.0,0.00020361,2]
[314630329,1708474232556,-518.3,0.00020361,2]
[314630331,1708474232567,-3772.67,0.00020362,2]
[314630333,1708474232576,-1620.33,0.00020362,2]
[314630338,1708474232762,-5859.74,0.00020362,2]
[314630339,1708474232772,-500.0,0.00020362,2]
[314630340,1708474232781,-44782.37,0.00020362,2]
[314630341,1708474232792,-500.0,0.00020362,2]
[314630342,1708474232802,-867.06,0.00020362,2]
[314630343,1708474232812,-500.0,0.00020362,2]
[314630344,1708474232822,-1470.63,0.00020362,2]
[314630345,1708474232832,-2480.22,0.00020362,2]
[314630346,1708474232841,-500.0,0.00020362,2]
[314630347,1708474232851,-500.0,0.00020362,2]
[314630348,1708474232860,-500.0,0.00020363,2]
[314630349,1708474232870,-500.66726901,0.00020363,2]
[314630350,1708474232880,-500.0,0.00020363,2]
[314630351,1708474232890,-500.0,0.00020363,2]
[314630352,1708474232899,-522.08839772,0.00020363,2]
[314630353,1708474232908,-500.0,0.00020363,2]
[314630354,1708474232918,-514.97971709,0.00020363,2]
[314630355,1708474232928,-500.0,0.00020363,2]
[314630356,1708474232938,-500.0,0.00020363,2]
[314630357,1708474232949,-659.52,0.00020363,2]
[314630358,1708474232959,-500.0,0.00020363,2]
[314630359,1708474232968,-365.49306789,0.00020363,2]
[314630360,1708474232978,-1479.14,0.00020363,2]
[314630361,1708474232987,-500.0,0.00020363,2]
[314630362,1708474232997,-500.0,0.00020363,2]
[314630363,1708474233006,-500.0,0.00020363,2]
[314630364,1708474233016,-505.06066624,0.00020363,2]
[314630365,1708474233027,-500.0,0.00020363,2]
[314630366,1708474233037,-500.0,0.00020363,2]
[314630367,1708474233046,-716.5,0.00020363,2]
[314630368,1708474233055,-500.0,0.00020363,2]
[314630369,1708474233065,-500.0,0.00020363,2]
[314630370,1708474233074,-581.25173001,0.00020363,2]
[314630371,1708474233083,-500.0,0.00020363,2]
[314630372,1708474233093,-579.3091575,0.00020363,2]
[314630373,1708474233102,-500.0,0.00020363,2]
[314630374,1708474233111,-500.0,0.00020363,2]
[314630375,1708474233120,-500.0,0.00020363,2]
[314630376,1708474233130,-795.70621514,0.00020363,2]
[314630444,1708474243317,-879.15,0.00020352,3]
[314630445,1708474243327,-560.40378486,0.00020363,2]
[314630446,1708474243337,-588.44,0.00020363,2]
[314630447,1708474243346,-500.0,0.00020363,2]
[314630448,1708474243355,-500.0,0.00020363,2]
[314630449,1708474243365,-266.2683007,0.00020363,2]
[314630450,1708474243374,-648.96,0.00020363,2]
[314630452,1708474243383,-500.0,0.00020363,2]
[314630454,1708474243392,-586.49,0.00020363,2]
[314630455,1708474243402,-500.0,0.00020363,2]
[314630456,1708474243410,-500.0,0.00020363,2]
[314630457,1708474243420,-500.0,0.00020363,2]
[314630458,1708474243430,-559.94,0.00020363,2]
[314630459,1708474243440,-500.0,0.00020363,2]
[314630460,1708474243449,-500.0,0.00020363,2]
[314630461,1708474243459,-500.0,0.00020363,2]
[314630462,1708474243469,-500.0,0.00020363,2]
[314630463,1708474243480,-500.0,0.00020363,2]
[314630464,1708474243490,-500.0,0.00020363,2]
[314630465,1708474243499,-514.86147645,0.00020363,2]
[314630466,1708474243510,-500.0,0.00020363,2]
[314630467,1708474243519,-500.0,0.00020363,2]
[314630468,1708474243529,-500.0,0.00020363,2]
[314630469,1708474243539,-500.0,0.00020363,2]
[314630470,1708474243549,-953.01,0.00020363,2]
[314630471,1708474243558,-1306.57,0.00020363,2]
[314630472,1708474243567,-500.0,0.00020363,2]
[314630473,1708474243578,-500.0,0.00020363,2]
[314630474,1708474243587,-500.0,0.00020363,2]
[314630475,1708474243596,-521.96,0.00020363,2]
[314630476,1708474243605,-587.64,0.00020363,2]
[314630477,1708474243616,-500.0,0.00020363,2]
[314630478,1708474243626,-500.0,0.00020363,2]
[314630479,1708474243636,-1044.94,0.00020363,2]
[314630480,1708474243645,-500.0,0.00020363,2]
[314630481,1708474243654,-500.0,0.00020363,2]
[314630482,1708474243663,-500.0,0.00020363,2]
[314630483,1708474243672,-500.0,0.00020363,2]
[314630484,1708474243682,-500.0,0.00020363,2]
[314630485,1708474243692,-500.0,0.00020363,2]
[314630486,1708474243701,-877.92,0.00020363,2]
[314630487,1708474243711,-648.93143026,0.00020363,2]
[314630488,1708474243720,-640.45616541,0.00020363,2]
[314630489,1708474243729,-500.0,0.00020363,2]
[314630490,1708474243738,-500.0,0.00020363,2]
[314630491,1708474243748,-500.0,0.00020363,2]
[314630492,1708474243758,-500.0,0.00020363,2]
[314630493,1708474243768,-500.0,0.00020363,2]
[314630494,1708474243778,-500.0,0.00020363,2]
[314630495,1708474243787,-500.0,0.00020363,2]
[314630496,1708474243796,-500.0,0.00020363,2]
[314630497,1708474243806,-401.732662,0.00020363,2]
[314630498,1708474243815,-401.732662,0.00020363,2]
[314630499,1708474243824,-500.0,0.00020363,2]
[314630500,1708474243834,-151.0,0.00020363,2]
[314630501,1708474243843,-401.732662,0.00020363,2]
[314630502,1708474243853,-401.732662,0.00020363,2]
[314630503,1708474243862,-708.15,0.00020363,2]
[314630504,1708474243871,-500.0,0.00020363,2]
[314630505,1708474243880,-1570.5,0.00020363,2]
[314630506,1708474243889,-500.0,0.00020363,2]
[314630507,1708474243899,-500.0,0.00020363,2]
[314630508,1708474243908,-151.0,0.00020363,2]
[314630509,1708474243918,-500.0,0.00020363,2]
[314630510,1708474243927,-151.0,0.00020363,2]
[314630511,1708474243936,-151.0,0.00020363,2]
[314630512,1708474243945,-500.0,0.00020363,2]
[314630513,1708474243955,-500.0,0.00020363,2]
[314630514,1708474243964,-500.0,0.00020363,2]
[314630515,1708474243973,-500.0,0.00020363,2]
[314630516,1708474243982,-500.0,0.00020363,2]
[314630517,1708474243991,-3922.48,0.00020363,2]
[314630518,1708474244000,-500.0,0.00020363,2]
[314630519,1708474244011,-3409.53,0.00020363,2]
[314630520,1708474244020,-500.0,0.00020363,2]
[314630521,1708474244029,-284.82775864,0.00020363,2]
[314630522,1708474244038,-1452.36,0.00020363,2]
[314630523,1708474244046,-500.0,0.00020363,2]
[314630524,1708474244056,-500.0,0.00020363,2]
[314630525,1708474244065,-686.41,0.00020363,2]
[314630526,1708474244074,-504.60971602,0.00020363,2]
[314630527,1708474244083,-500.0,0.00020363,2]
[314630528,1708474244092,-500.0,0.00020363,2]
[314630529,1708474244101,-5297.69,0.00020363,2]
[314630530,1708474244111,-506.50249164,0.00020363,2]
[314630531,1708474244120,-3126.33,0.00020363,2]
[314630532,1708474244129,-500.0,0.00020363,2]
[314630533,1708474244138,-500.0,0.00020363,2]
[314630534,1708474244147,-500.0,0.00020363,2]
[314630535,1708474244157,-500.0,0.00020363,2]
[314630536,1708474244165,-219.72435843,0.00020363,2]
[314630537,1708474244177,-500.0,0.00020363,2]
[314630538,1708474244186,-500.0,0.00020363,2]
[314630539,1708474244195,-500.0,0.00020363,2]
[314630540,1708474244203,-500.0,0.00020363,2]
[314630541,1708474244212,-500.0,0.00020363,2]